[Event "HUN-chT Youth 2019"]
[Site "Budapest"]
[Date "2019.10.29"]
[Round "7.8"]
[White "Foldes, Marton Gabor"]
[Black "Szuhorukov, Marcell"]
[Result "1-0"]
[ECO "C05"]
[WhiteElo "1755"]
[BlackElo "1384"]
[Annotator "NA"]
[PlyCount "109"]
[EventDate "2019.10.26"]
[EventType "team-tourn"]
[EventCountry "HUN"]
[SourceTitle "playchess.com"]
[Source "ChessBase"]
[SourceQuality "1"]
[TimeControl "5400+30"]

1. e4 {[%emt 0:00:00]} e6 {[%emt 0:00:00]} 2. d4 {[%emt 0:00:00]} d5 {[%emt 0:00:12]} 3. Nd2 {[%emt 0:00:37]} Nf6 {[%emt 0:00:34]} 4. e5 {[%emt 0:01:05]} Nfd7 {[%emt 0:00:11]} 5. Ngf3 {[%emt 0:06:19]} c5 {[%emt 0:00:23]} 6. c3 {[%emt 0:00:29]} Nc6 {[%emt 0:00:33]} 7. Bd3 {[%emt 0:22:11]} Be7 {[%emt 0:03:37]} 8. O-O {[%emt 0:01:00]} O-O {[%emt 0:00:46]} 9. a3 {[%emt 0:12:59]} Qb6 {[%emt 0:00:57]} 10. b4 {[%emt 0:05:31]} cxd4 {[%emt 0:00:31]} 11. cxd4 {[%emt 0:02:32]} Nxd4 {[%emt 0:00:15]} 12. Bb2 {[%emt 0:01:12]} Nc6 {[%emt 0:08:40]} 13. Qe2 {[%emt 0:05:55]} a5 {[%emt 0:00:23]} 14. b5 {[%emt 0:01:56]} Na7 {[%emt 0:00:54]} 15. a4 {[%emt 0:04:58]} Nc5 {[%emt 0:01:53]} 16. Bc2 {[%emt 0:00:16]} Bd7 {[%emt 0:01:08]} 17. Nd4 {[%emt 0:01:29]} Rac8 {[%emt 0:07:54]} 18. Kh1 {[%emt 0:05:15]} f6 {[%emt 0:02:45]} 19. Qh5 {[%emt 0:06:34]} f5 {[%emt 0:01:45]} 20. f4 Be8 {[%emt 0:00:24]} 21. Qe2 {[%emt 0:04:28]} Bg6 {[%emt 0:01:36]} 22. Rac1 {[%emt 0:02:57]} Rc7 {[%emt 0:01:28]} 23. N2f3 {[%emt 0:05:37]} Bh5 {[%emt 0:03:17]} 24. Qd2 {[%emt 0:00:54]} Bf7 {[%emt 0:02:09]} 25. Bc3 {[%emt 0:00:36]} Ne4 {[%emt 0:01:41]} 26. Bxe4 {[%emt 0:00:42]} Rxc3 {[%emt 0:01:17]} 27. Qxc3 {[%emt 0:01:11]} fxe4 {[%emt 0:00:16]} 28. Ng5 {[%emt 0:00:53]} Bb4 {[%emt 0:00:58]} 29. Qh3 {[%emt 0:01:31]} h6 {[%emt 0:00:23]} 30. Ngxe6 {[%emt 0:00:32]} Re8 {[%emt 0:01:40]} 31. f5 {[%emt 0:00:27]} Bxe6 {[%emt 0:02:24]} 32. Nxe6 {[%emt 0:00:15]} d4 {[%emt 0:00:43]} 33. Qg4 {[%emt 0:01:09]} Bf8 {[%emt 0:01:11]} 34. Qxe4 {[%emt 0:00:45]} Kh8 {[%emt 0:01:28]} 35. Nxd4 {[%emt 0:02:16]} Nc8 {[%emt 0:03:59]} 36. Ne6 {[%emt 0:00:27]} Ne7 {[%emt 0:00:40]} 37. Qd4 {[%emt 0:01:14]} Qxd4 {[%emt 0:00:22]} 38. Nxd4 {[%emt 0:00:01]} Nd5 {[%emt 0:00:42]} 39. Ne6 Ne3 {[%emt 0:00:13]} 40. Rf3 {[%emt 0:01:50]} Bb4 {[%emt 0:00:16]} 41. Rxe3 {[%emt 0:00:17]} Bd2 {[%emt 0:00:15]} 42. Rec3 {[%emt 0:00:23]} Bxc3 {[%emt 0:00:25]} 43. Rxc3 {[%emt 0:00:02]} g6 {[%emt 0:00:28]} 44. g4 {[%emt 0:00:10]} Kh7 {[%emt 0:00:25]} 45. Rc7+ {[%emt 0:00:13]} Kh8 {[%emt 0:00:28]} 46. Rxb7 {[%emt 0:00:19]} h5 {[%emt 0:00:10]} 47. f6 {[%emt 0:01:34]} h4 {[%emt 0:02:01]} 48. f7 {[%emt 0:00:30]} Ra8 {[%emt 0:00:32]} 49. f8=Q+ {[%emt 0:00:26]} Rxf8 {[%emt 0:00:14]} 50. Nxf8 {[%emt 0:00:01]} g5 {[%emt 0:00:34]} 51. Rd7 {[%emt 0:00:13]} h3 {[%emt 0:00:11]} 52. b6 {[%emt 0:00:08]} Kg8 {[%emt 0:00:01]} 53. b7 {[%emt 0:00:08]} Kh8 {[%emt 0:00:22]} 54. b8=Q {[%emt 0:00:09]} Kg8 {[%emt 0:00:26]} 55. Ng6# {[%emt 0:00:06]} 1-0

[Event "HUN-chT Youth 2019"]
[Site "Budapest"]
[Date "2019.10.29"]
[Round "7.9"]
[White "Tapodi, Norman Lajos"]
[Black "Juhasz, Agoston"]
[Result "1/2-1/2"]
[ECO "A50"]
[WhiteElo "2102"]
[BlackElo "2115"]
[Annotator "ChessBase"]
[PlyCount "65"]
[EventDate "2019.10.26"]
[EventType "team-tourn"]
[EventCountry "HUN"]
[SourceTitle "playchess.com"]
[Source "ChessBase"]
[SourceQuality "1"]
[TimeControl "5400+30"]

1. d4 {[%emt 0:00:00]} Nf6 {[%emt 0:00:00]} 2. c4 {[%emt 0:00:04]} b6 {[%emt 0:00:01]} 3. Nc3 {[%emt 0:01:12]} Bb7 {[%emt 0:00:10]} 4. f3 {[%emt 0:01:15]} d5 {[%emt 0:00:18]} 5. cxd5 {[%emt 0:00:49]} Nxd5 {[%emt 0:00:05]} 6. e4 {[%emt 0:00:27]} Nxc3 {[%emt 0:00:05]} 7. bxc3 {[%emt 0:00:14]} e6 {[%emt 0:00:12]} 8. Be3 {[%emt 0:03:07]} Be7 {[%emt 0:00:23]} 9. Bb5+ {[%emt 0:02:28]} c6 {[%emt 0:00:42]} 10. Bd3 {[%emt 0:00:58]} O-O {[%emt 0:00:35]} 11. Ne2 {[%emt 0:01:27]} c5 {[%emt 0:00:27]} 12. O-O {[%emt 0:00:26]} cxd4 {[%emt 0:02:48]} 13. cxd4 {[%emt 0:00:53]} Nc6 {[%emt 0:00:13]} 14. Qa4 {[%emt 0:19:28]} Nb4 {[%emt 0:09:02]} 15. Rfd1 {[%emt 0:02:27]} Nxd3 {[%emt 0:01:22]} 16. Rxd3 {[%emt 0:00:27]} Qd6 {[%emt 0:02:53]} 17. Bf4 {[%emt 0:07:19]} Qc6 {[%emt 0:01:06]} 18. Qxc6 {[%emt 0:02:23]} Bxc6 {[%emt 0:00:02]} 19. Rc3 {[%emt 0:03:04]} Bb5 {[%emt 0:00:35]} 20. Kf2 {[%emt 0:01:24]} Rfc8 {[%emt 0:03:17]} 21. Rac1 {[%emt 0:02:17]} Rxc3 {[%emt 0:01:38]} 22. Rxc3 {[%emt 0:00:39]} Kf8 {[%emt 0:01:41]} 23. Rc7 {[%emt 0:03:06]} Bd8 {[%emt 0:08:00]} 24. Rc1 {[%emt 0:03:36]} Bd7 {[%emt 0:10:00]} 25. Ke3 {[%emt 0:03:48]} b5 {[%emt 0:05:52]} 26. Bd6+ {[%emt 0:03:40]} Ke8 {[%emt 0:03:41]} 27. Rc2 {[%emt 0:04:34]} Bb6 {[%emt 0:04:41]} 28. Nc1 {[%emt 0:08:12]} f6 {[%emt 0:10:16]} 29. f4 {[%emt 0:00:36]} Rc8 {[%emt 0:06:43]} 30. Rxc8+ {[%emt 0:01:59]} Bxc8 {[%emt 0:00:02]} 31. Nb3 {[%emt 0:02:20]} a5 {[%emt 0:02:24]} 32. a3 {[%emt 0:02:12]} g6 {[%emt 0:04:07]} 33. Kd3 1/2-1/2

[Event "HUN-chT Youth 2019"]
[Site "Budapest"]
[Date "2019.10.29"]
[Round "7.9"]
[White "Meszaros, Jazmin"]
[Black "Csernyik, Mark"]
[Result "0-1"]
[ECO "B01"]
[WhiteElo "1171"]
[BlackElo "1749"]
[Annotator "NA"]
[PlyCount "72"]
[EventDate "2019.10.26"]
[EventType "team-tourn"]
[EventCountry "HUN"]
[SourceTitle "playchess.com"]
[Source "ChessBase"]
[SourceQuality "1"]
[TimeControl "5400+30"]

1. e4 {[%emt 0:00:00]} d5 {[%emt 0:00:00]} 2. Nc3 {[%emt 0:00:04]} dxe4 {[%emt 0:01:21]} 3. Nxe4 {[%emt 0:02:11]} Nf6 {[%emt 0:01:03]} 4. Nxf6+ {[%emt 0:00:44]} exf6 {[%emt 0:00:17]} 5. Nf3 {[%emt 0:02:36]} Nc6 {[%emt 0:01:26]} 6. Be2 {[%emt 0:00:40]} Bd6 {[%emt 0:00:52]} 7. O-O {[%emt 0:00:35]} Bf5 {[%emt 0:01:17]} 8. Bd3 {[%emt 0:01:59]} Bxd3 {[%emt 0:00:34]} 9. cxd3 {[%emt 0:00:16]} O-O {[%emt 0:00:09]} 10. Nh4 {[%emt 0:04:52]} Be5 {[%emt 0:00:50]} 11. Qg4 {[%emt 0:04:57]} Qxd3 {[%emt 0:02:20]} 12. Nf5 {[%emt 0:02:21]} g6 {[%emt 0:00:12]} 13. Nh6+ {[%emt 0:01:32]} Kh8 {[%emt 0:01:24]} 14. Re1 {[%emt 0:03:29]} Nd4 {[%emt 0:02:17]} 15. Qe4 {[%emt 0:03:42]} Qxe4 {[%emt 0:01:39]} 16. Rxe4 {[%emt 0:00:28]} Rae8 {[%emt 0:00:49]} 17. d3 {[%emt 0:00:44]} f5 {[%emt 0:00:34]} 18. Re3 {[%emt 0:00:32]} Nc2 {[%emt 0:00:30]} 19. Rb1 {[%emt 0:01:04]} Nxe3 {[%emt 0:00:25]} 20. Bxe3 {[%emt 0:00:24]} Kg7 {[%emt 0:00:23]} 21. Bc5 {[%emt 0:01:08]} Bd6 {[%emt 0:00:28]} 22. Bxd6 {[%emt 0:01:33]} cxd6 {[%emt 0:00:08]} 23. Rc1 {[%emt 0:00:47]} Rc8 {[%emt 0:00:36]} 24. Rxc8 {[%emt 0:00:30]} Rxc8 {[%emt 0:00:10]} 25. g3 {[%emt 0:00:17]} Kxh6 {[%emt 0:00:07]} 26. Kg2 {[%emt 0:00:27]} Rc2 {[%emt 0:00:09]} 27. a3 {[%emt 0:00:21]} Rd2 {[%emt 0:00:07]} 28. b4 {[%emt 0:01:15]} Rxd3 {[%emt 0:00:10]} 29. a4 {[%emt 0:00:17]} d5 {[%emt 0:00:09]} 30. b5 {[%emt 0:00:34]} Rb3 {[%emt 0:00:13]} 31. a5 {[%emt 0:00:49]} d4 {[%emt 0:00:12]} 32. b6 {[%emt 0:00:31]} axb6 {[%emt 0:00:08]} 33. axb6 {[%emt 0:00:16]} d3 {[%emt 0:00:10]} 34. Kh3 {[%emt 0:00:14]} d2 {[%emt 0:00:19]} 35. Kh4 {[%emt 0:00:13]} d1=Q {[%emt 0:00:15]} 36. f4 {[%emt 0:01:35]} Qg4# {[%emt 0:00:13]} 0-1

[Event "HUN-chT Youth 2019"]
[Site "Budapest"]
[Date "2019.10.29"]
[Round "7.10"]
[White "Kovacsy, Barnabas"]
[Black "Daroczi, Donat"]
[Result "1-0"]
[ECO "C11"]
[WhiteElo "2093"]
[BlackElo "1976"]
[Annotator "NA"]
[PlyCount "59"]
[EventDate "2019.10.26"]
[EventType "team-tourn"]
[EventCountry "HUN"]
[SourceTitle "playchess.com"]
[Source "ChessBase"]
[SourceQuality "1"]
[TimeControl "5400+30"]

{[%evp 21,59,-6,32767,32767,32767,13,32767,9,32767,21,16,32767,31,26,32767,32767,82,59,105,32767,92,103,108,130,173,170,32767,32767,32767,229,32767,228,348,419,32767,32767,32767,596,32767,643]} 1. e4 {[%emt 0:00:00]} e6 {[%emt 0:00:00]} 2. d4 {[%emt 0:00:00]} d5 {[%emt 0:00:00]} 3. Nc3 {[%emt 0:00:00]} Nf6 {[%emt 0:00:00]} 4. e5 {[%emt 0:00:00]} Nfd7 {[%emt 0:00:00]} 5. f4 {[%emt 0:00:02]} c5 {[%emt 0:00:00]} 6. Nf3 {[%emt 0:00:09]} Nc6 {[%emt 0:00:00]} 7. Be3 {[%emt 0:00:06]} a6 {[%emt 0:00:24]} 8. Qd2 {[%emt 0:00:05]} b5 {[%emt 0:00:05]} 9. dxc5 {[%emt 0:00:30]} Bxc5 {[%emt 0:00:12]} 10. Bd3 {[%emt 0:00:17] C11: French: Classical System: 4 e5 and 4 Bg5 dxe4} (10. Ne2 O-O 11. Ned4 Qb6 12. c3 b4 13. Bd3 a5 14. O-O Ba6 15. Kh1 Bxd3 16. Qxd3 Qa6 17. Qc2 bxc3 18. bxc3 {½-½ (31) Dominguez Perez,L (2739)-So,W (2788) Saint Louis 2017}) 10... Qb6 {[%emt 0:15:14]} 11. Bf2 {[%emt 0:00:34]} Bb7 {[%emt 0:02:08]} 12. a3 {[%emt 0:02:03]} Rc8 {[%emt 0:01:45]} 13. O-O {[%emt 0:01:58]} Bxf2+ {[%emt 0:04:40]} 14. Qxf2 $146 {[%emt 0:06:39]} ({Predecessor:} 14. Rxf2 Ne7 15. b4 O-O 16. Ne2 g6 17. Ned4 Kh8 {½-½ (17) Bagi,M (2385)-Rambaldi,F (2490) Graz 2015}) 14... Ke7 {[%emt 0:01:16]} 15. Ne2 {[%emt 0:02:33]} Qxf2+ {[%emt 0:00:23]} 16. Kxf2 {[%emt 0:00:39]} Nc5 {[%emt 0:08:00]} 17. Ned4 {[%emt 0:01:20]} Nxd3+ {[%emt 0:03:17]} 18. cxd3 {[%emt 0:00:08]} g6 {[%emt 0:01:48]} 19. Rac1 {[%emt 0:04:55]} Rc7 {[%emt 0:02:36]} 20. Rc5 {[%emt 0:03:24]} Rhc8 {[%emt 0:01:27]} 21. Rfc1 {[%emt 0:00:53]} Kd8 {[%emt 0:02:34]} 22. Nxc6+ {[%emt 0:01:23]} Bxc6 {[%emt 0:01:44] [#]} 23. Ng5 $1 {[%emt 0:00:21]} h6 24. Nxf7+ {[%emt 0:00:22]} Rxf7 {[%emt 0:08:15]} 25. Rxc6 {[%emt 0:00:32] Double Attack} Rxc6 {[%emt 0:01:34]} 26. Rxc6 {[%emt 0:00:27]} Kd7 {[%emt 0:01:06]} (26... Rxf4+ {was necessary.} 27. Ke3 g5 28. Rxe6 d4+ 29. Ke2 h5 30. Rxa6 Rf5 31. Rd6+ Kc7 32. Rxd4 Rxe5+ 33. Re4 Rc5) 27. Rd6+ {[%emt 0:00:44]} Ke7 {[%emt 0:01:35]} 28. g3 {[%emt 0:00:16]} g5 {[%emt 0:00:05]} 29. Rxa6 {[%emt 0:00:24]} Rf5 {[%emt 0:00:27]} 30. Kf3 $18 {[%emt 0:01:00]} 1-0

[Event "HUN-chT Youth 2019"]
[Site "Budapest"]
[Date "2019.10.29"]
[Round "7.10"]
[White "Karacsonyi, Bank"]
[Black "Szuhorukov, Viktor"]
[Result "0-1"]
[ECO "C05"]
[WhiteElo "1513"]
[BlackElo "1213"]
[Annotator "NA"]
[PlyCount "72"]
[EventDate "2019.10.26"]
[EventType "team-tourn"]
[EventCountry "HUN"]
[SourceTitle "playchess.com"]
[Source "ChessBase"]
[SourceQuality "1"]
[TimeControl "5400+30"]

1. e4 {[%emt 0:00:00]} e6 {[%emt 0:00:00]} 2. d4 {[%emt 0:00:00]} d5 {[%emt 0:00:00]} 3. Nd2 {[%emt 0:00:00]} Nf6 {[%emt 0:00:00]} 4. Bd3 {[%emt 0:01:52]} Be7 {[%emt 0:01:01]} 5. Ngf3 {[%emt 0:00:20]} O-O {[%emt 0:00:17]} 6. O-O {[%emt 0:01:19]} c5 {[%emt 0:01:20]} 7. dxc5 {[%emt 0:00:26]} Bxc5 {[%emt 0:01:53]} 8. exd5 {[%emt 0:01:15]} Nxd5 {[%emt 0:00:33]} 9. Nb3 {[%emt 0:00:39]} Be7 {[%emt 0:01:09]} 10. Qe2 {[%emt 0:01:31]} Nc6 {[%emt 0:00:35]} 11. Rd1 {[%emt 0:00:31]} Qc7 {[%emt 0:01:08]} 12. Bd2 {[%emt 0:03:50]} a6 {[%emt 0:01:53]} 13. a3 {[%emt 0:01:10]} Bf6 {[%emt 0:00:56]} 14. Qe4 {[%emt 0:01:36]} g6 {[%emt 0:00:47]} 15. c4 {[%emt 0:02:18]} Nde7 {[%emt 0:01:41]} 16. Bh6 {[%emt 0:02:42]} Rd8 {[%emt 0:02:17]} 17. Ng5 {[%emt 0:02:17]} Nf5 {[%emt 0:05:45]} 18. Qf3 {[%emt 0:01:21]} Bxb2 {[%emt 0:05:45]} 19. Rab1 {[%emt 0:01:42]} Nxh6 {[%emt 0:00:40]} 20. Rxb2 {[%emt 0:00:10]} Qe5 {[%emt 0:01:29]} 21. Nxf7 {[%emt 0:04:14]} Nxf7 {[%emt 0:00:29]} 22. Rbd2 {[%emt 0:01:31]} Qc3 {[%emt 0:06:12]} 23. Nc5 {[%emt 0:01:03]} Qxa3 {[%emt 0:02:10]} 24. Ne4 {[%emt 0:00:40]} Qe7 {[%emt 0:02:23]} 25. Nf6+ {[%emt 0:03:19]} Kg7 {[%emt 0:01:08]} 26. Nxh7 {[%emt 0:01:22]} Qh4 {[%emt 0:06:22]} 27. Bxg6 {[%emt 0:01:34]} Kxg6 {[%emt 0:00:37]} 28. Rxd8 {[%emt 0:00:21]} Ncxd8 {[%emt 0:02:05]} 29. Nf8+ {[%emt 0:02:33]} Kg7 {[%emt 0:02:18]} 30. g3 {[%emt 0:00:36]} Qe7 {[%emt 0:01:40]} 31. Rd4 {[%emt 0:01:14]} Kxf8 {[%emt 0:02:55]} 32. Rh4 {[%emt 0:00:16]} Ke8 {[%emt 0:01:41]} 33. Rg4 {[%emt 0:01:58]} Qf8 {[%emt 0:01:38]} 34. Qf6 {[%emt 0:00:47]} a5 {[%emt 0:01:47]} 35. h4 {[%emt 0:01:33]} a4 {[%emt 0:00:26]} 36. h5 {[%emt 0:00:22]} a3 {[%emt 0:00:44]} 0-1

[Event "HUN-chT Youth 2019"]
[Site "Budapest"]
[Date "2019.10.29"]
[Round "7.11"]
[White "Kiss, Rebeka"]
[Black "Koltai, Dora"]
[Result "1/2-1/2"]
[ECO "C42"]
[WhiteElo "1743"]
[BlackElo "1845"]
[Annotator "NA"]
[PlyCount "55"]
[EventDate "2019.10.26"]
[EventType "team-tourn"]
[EventCountry "HUN"]
[SourceTitle "playchess.com"]
[Source "ChessBase"]
[SourceQuality "1"]
[TimeControl "5400+30"]

1. e4 {[%emt 0:00:00]} e5 {[%emt 0:00:00]} 2. Nf3 {[%emt 0:00:00]} Nf6 {[%emt 0:00:00]} 3. Nxe5 {[%emt 0:00:03]} d6 {[%emt 0:00:00]} 4. Nf3 {[%emt 0:00:18]} Nxe4 {[%emt 0:00:00]} 5. Nc3 {[%emt 0:00:16]} Nf6 {[%emt 0:00:11]} 6. d4 {[%emt 0:01:34]} Be7 {[%emt 0:00:33]} 7. Bd3 {[%emt 0:04:08]} O-O {[%emt 0:00:20]} 8. h3 {[%emt 0:01:13]} c6 {[%emt 0:01:59]} 9. O-O {[%emt 0:01:00]} h6 {[%emt 0:02:29]} 10. Bd2 {[%emt 0:05:25]} Be6 {[%emt 0:01:11]} 11. Ne2 {[%emt 0:02:00]} Qc8 {[%emt 0:07:39]} 12. Re1 {[%emt 0:03:47]} Re8 {[%emt 0:04:31]} 13. Nf4 {[%emt 0:02:13]} Bf5 {[%emt 0:02:01]} 14. c4 {[%emt 0:18:36]} Bxd3 {[%emt 0:06:46]} 15. Nxd3 $11 {[%emt 0:00:09]} d5 {[%emt 0:04:52]} 16. c5 {[%emt 0:01:08]} Ne4 {[%emt 0:05:10]} 17. Bf4 {[%emt 0:00:48]} Nd7 {[%emt 0:03:52]} 18. Nde5 {[%emt 0:01:46]} Bf6 {[%emt 0:05:25]} 19. Re3 {[%emt 0:18:34]} Bxe5 {[%emt 0:10:19]} 20. Nxe5 {[%emt 0:00:35]} Nxe5 {[%emt 0:02:59]} 21. Bxe5 {[%emt 0:00:06]} b6 {[%emt 0:06:14]} 22. b4 {[%emt 0:01:36]} Re6 {[%emt 0:12:13]} 23. Qe2 {[%emt 0:05:27]} Rg6 {[%emt 0:05:31]} 24. Bh2 {[%emt 0:03:12]} Ng5 {[%emt 0:01:53]} 25. Kh1 {[%emt 0:01:03]} Re6 {[%emt 0:01:01]} 26. Re1 {[%emt 0:01:14]} Rxe3 {[%emt 0:02:35]} 27. Qxe3 {[%emt 0:00:06]} Qe6 {[%emt 0:01:25]} 28. f3 {[%emt 0:04:10]} 1/2-1/2

[Event "HUN-chT Youth 2019"]
[Site "Budapest"]
[Date "2019.10.29"]
[Round "7.11"]
[White "Benedek, Huba"]
[Black "Karacsonyi, Luca"]
[Result "1/2-1/2"]
[ECO "B50"]
[WhiteElo "1125"]
[BlackElo "1556"]
[Annotator "NA"]
[PlyCount "57"]
[EventDate "2019.10.26"]
[EventType "team-tourn"]
[EventCountry "HUN"]
[SourceTitle "playchess.com"]
[Source "ChessBase"]
[SourceQuality "1"]
[TimeControl "5400+30"]

1. e4 {[%emt 0:00:00]} c5 {[%emt 0:00:00]} 2. Nf3 {[%emt 0:00:00]} d6 {[%emt 0:00:02]} 3. g3 {[%emt 0:00:01]} Nf6 {[%emt 0:00:40]} 4. d3 {[%emt 0:01:59]} Nc6 {[%emt 0:00:39]} 5. Bg2 {[%emt 0:00:09]} g6 {[%emt 0:01:30]} 6. O-O {[%emt 0:00:09]} Bg7 {[%emt 0:00:07]} 7. Nc3 {[%emt 0:02:09]} O-O {[%emt 0:00:16]} 8. Bg5 {[%emt 0:03:00]} Bg4 {[%emt 0:04:10]} 9. h3 {[%emt 0:00:50]} Bd7 {[%emt 0:00:22]} 10. Qd2 {[%emt 0:01:17]} Qc8 {[%emt 0:01:05]} 11. Kh2 {[%emt 0:00:14]} Re8 {[%emt 0:02:02]} 12. Bh6 {[%emt 0:00:17]} Bh8 {[%emt 0:00:26]} 13. Rae1 {[%emt 0:12:10]} a6 {[%emt 0:04:12]} 14. Na4 {[%emt 0:03:45]} Qc7 {[%emt 0:00:48]} 15. Nc3 {[%emt 0:00:26]} b5 {[%emt 0:03:24]} 16. a3 {[%emt 0:10:30]} Rab8 {[%emt 0:07:40]} 17. Bg5 {[%emt 0:05:43]} Qa7 {[%emt 0:08:01]} 18. Kg1 {[%emt 0:08:08]} a5 {[%emt 0:02:53]} 19. b3 {[%emt 0:03:34]} b4 {[%emt 0:08:26]} 20. axb4 {[%emt 0:01:48]} axb4 {[%emt 0:00:38]} 21. Nd5 {[%emt 0:05:18]} Nxd5 {[%emt 0:08:56]} 22. exd5 {[%emt 0:00:31]} Bc3 {[%emt 0:00:35]} 23. Qc1 {[%emt 0:00:09]} Bxe1 {[%emt 0:00:56]} 24. dxc6 {[%emt 0:00:18]} Bxf2+ {[%emt 0:00:12]} 25. Rxf2 {[%emt 0:00:24]} Bxc6 {[%emt 0:00:20]} 26. Re2 {[%emt 0:00:18]} Qa3 {[%emt 0:04:07]} 27. Re1 {[%emt 0:01:43]} f6 {[%emt 0:09:11]} 28. Be3 {[%emt 0:00:00]} Ra8 {[%emt 0:01:52]} 29. d4 {[%emt 0:01:17]} 1/2-1/2

[Event "HUN-chT Youth 2019"]
[Site "Budapest"]
[Date "2019.10.29"]
[Round "7.12"]
[White "Matyassy, Lazar"]
[Black "Fulop, Csilla"]
[Result "1-0"]
[ECO "B35"]
[WhiteElo "1652"]
[BlackElo "1462"]
[Annotator "NA"]
[PlyCount "51"]
[EventDate "2019.10.26"]
[EventType "team-tourn"]
[EventCountry "HUN"]
[SourceTitle "playchess.com"]
[Source "ChessBase"]
[SourceQuality "1"]
[TimeControl "5400+30"]

1. e4 {[%emt 0:00:00]} c5 {[%emt 0:00:00]} 2. Nf3 {[%emt 0:00:00]} Nc6 {[%emt 0:00:00]} 3. d4 {[%emt 0:00:00]} cxd4 {[%emt 0:00:00]} 4. Nxd4 {[%emt 0:00:00]} g6 {[%emt 0:00:00]} 5. Nc3 {[%emt 0:00:27]} Bg7 {[%emt 0:00:04]} 6. Be3 {[%emt 0:00:07]} Nf6 {[%emt 0:00:09]} 7. Bc4 {[%emt 0:00:07]} O-O {[%emt 0:00:46]} 8. Bb3 {[%emt 0:00:06]} d6 {[%emt 0:01:05]} 9. f3 {[%emt 0:00:15]} Bd7 {[%emt 0:01:35]} 10. Qd2 {[%emt 0:00:21]} Rc8 {[%emt 0:01:06]} 11. O-O-O {[%emt 0:01:06]} Na5 {[%emt 0:07:17]} 12. Bh6 {[%emt 0:03:06]} Nxb3+ {[%emt 0:02:39]} 13. Nxb3 {[%emt 0:00:09]} Qc7 {[%emt 0:03:51]} 14. h4 {[%emt 0:06:09]} Rfd8 {[%emt 0:02:11]} 15. Bxg7 {[%emt 0:01:31]} Kxg7 {[%emt 0:00:06]} 16. h5 {[%emt 0:00:30]} a5 {[%emt 0:06:13]} 17. hxg6 {[%emt 0:00:56]} fxg6 {[%emt 0:01:22]} 18. Nd5 {[%emt 0:10:21]} Nxd5 {[%emt 0:07:08]} 19. exd5 {[%emt 0:00:36]} h5 {[%emt 0:07:50]} 20. g4 {[%emt 0:02:46]} Rh8 {[%emt 0:08:07]} 21. gxh5 {[%emt 0:02:27]} e5 {[%emt 0:11:48]} 22. dxe6 {[%emt 0:08:40]} Bxe6 {[%emt 0:00:10]} 23. hxg6 {[%emt 0:00:43]} Bxb3 {[%emt 0:06:08]} 24. axb3 {[%emt 0:05:21]} Kxg6 {[%emt 0:07:16]} 25. Rdg1+ {[%emt 0:00:56]} Kf5 {[%emt 0:02:09]} 26. Rg5+ {[%emt 0:01:33]} 1-0

[Event "HUN-chT Youth 2019"]
[Site "Budapest"]
[Date "2019.10.29"]
[Round "7.12"]
[White "Szarvas, Nora"]
[Black "Koronczai, Csongor"]
[Result "1/2-1/2"]
[ECO "A09"]
[WhiteElo "1274"]
[BlackElo "1088"]
[Annotator "NA"]
[PlyCount "69"]
[EventDate "2019.10.26"]
[EventType "team-tourn"]
[EventCountry "HUN"]
[SourceTitle "playchess.com"]
[Source "ChessBase"]
[SourceQuality "1"]
[TimeControl "5400+30"]

1. Nf3 {[%emt 0:00:00]} d5 {[%emt 0:00:00]} 2. c4 {[%emt 0:00:00]} dxc4 {[%emt 0:00:40]} 3. Qa4+ {[%emt 0:00:00]} Nc6 {[%emt 0:00:24]} 4. Qxc4 {[%emt 0:00:00]} Be6 {[%emt 0:01:35]} 5. Qb5 {[%emt 0:01:58]} Rb8 {[%emt 0:00:54]} 6. e3 {[%emt 0:10:34]} Nf6 {[%emt 0:04:24]} 7. g3 {[%emt 0:04:10]} Bd5 {[%emt 0:03:36]} 8. Bg2 {[%emt 0:00:41]} a6 {[%emt 0:01:52]} 9. Qa4 {[%emt 0:00:51]} e6 {[%emt 0:05:27]} 10. O-O {[%emt 0:02:10]} Bd6 {[%emt 0:01:58]} 11. Nc3 {[%emt 0:03:39]} O-O {[%emt 0:02:11]} 12. e4 {[%emt 0:03:24]} b5 {[%emt 0:04:48]} 13. Qc2 {[%emt 0:01:48]} Bc4 {[%emt 0:00:31]} 14. Re1 {[%emt 0:01:59]} Nb4 {[%emt 0:01:26]} 15. Qd1 {[%emt 0:00:53]} Nd3 {[%emt 0:01:15]} 16. Re3 {[%emt 0:02:01]} Bc5 {[%emt 0:02:16]} 17. Re2 {[%emt 0:01:00]} Nxc1 {[%emt 0:01:13]} 18. Rxc1 {[%emt 0:00:27]} Bxe2 {[%emt 0:00:40]} 19. Nxe2 {[%emt 0:00:35]} Qe7 {[%emt 0:01:56]} 20. d4 {[%emt 0:00:57]} Bb6 {[%emt 0:00:37]} 21. e5 {[%emt 0:01:10]} Nd5 {[%emt 0:01:09]} 22. Nc3 {[%emt 0:01:35]} Qb4 {[%emt 0:02:47]} 23. Nxd5 {[%emt 0:01:02]} exd5 {[%emt 0:01:17]} 24. b3 {[%emt 0:01:06]} Rbd8 {[%emt 0:03:50]} 25. Qd3 {[%emt 0:00:33]} c5 {[%emt 0:02:09]} 26. Ng5 {[%emt 0:00:52]} g6 {[%emt 0:01:02]} 27. e6 {[%emt 0:00:28]} cxd4 {[%emt 0:04:33]} 28. exf7+ {[%emt 0:00:51]} Rxf7 {[%emt 0:02:12]} 29. Nxf7 {[%emt 0:00:37]} Kxf7 {[%emt 0:00:48]} 30. Qf3+ {[%emt 0:00:33]} Kg7 {[%emt 0:01:38]} 31. Qe2 {[%emt 0:03:34]} Rd6 {[%emt 0:01:47]} 32. Qe7+ {[%emt 0:00:49]} Kh6 {[%emt 0:00:11]} 33. Qh4+ {[%emt 0:00:18]} Kg7 {[%emt 0:00:42]} 34. Qe7+ {[%emt 0:00:06]} Kh6 {[%emt 0:00:36]} 35. Qh4+ 1/2-1/2